[Event "Early-Titled-Tuesday-Blitz-September-26-2023"]
[Site "Chess.com"]
[Date "2023.09.26"]
[Round "3"]
[White "Alenzer"]
[Black "Me_ch_an"]
[Result "1-0"]
[WhiteElo "2107"]
[BlackElo "2341"]
[TimeControl "180+1"]
[EndTime "8:29:23 PDT"]
[Termination "Alenzer won on time"]

1. e4 {[%clk 0:02:57.7]} 1... c5 {[%clk 0:02:56.3]} 2. Nf3 {[%clk 0:02:57.3]}
2... Nc6 {[%clk 0:02:56.1]} 3. d4 {[%clk 0:02:57.5]} 3... cxd4 {[%clk
0:02:55.8]} 4. Nxd4 {[%clk 0:02:58.1]} 4... Qb6 {[%clk 0:02:55.5]} 5. Nb3 {[%clk
0:02:56.8]} 5... Nf6 {[%clk 0:02:54.6]} 6. Be3 {[%clk 0:02:56.4]} 6... Qc7
{[%clk 0:02:43.9]} 7. Nc3 {[%clk 0:02:56.3]} 7... e6 {[%clk 0:02:44.1]} 8. Bd3
{[%clk 0:02:49.2]} 8... a6 {[%clk 0:02:42.8]} 9. O-O {[%clk 0:02:48.1]} 9... b5
{[%clk 0:02:41.7]} 10. f4 {[%clk 0:02:46.1]} 10... d6 {[%clk 0:02:41.6]} 11. a4
{[%clk 0:02:43.2]} 11... b4 {[%clk 0:02:39.4]} 12. Ne2 {[%clk 0:02:43.5]} 12...
Bb7 {[%clk 0:02:35.1]} 13. Qe1 {[%clk 0:02:35.6]} 13... Be7 {[%clk 0:02:34.4]}
14. Qg3 {[%clk 0:02:34.5]} 14... O-O {[%clk 0:02:33.7]} 15. a5 {[%clk
0:02:27.2]} 15... Rfe8 {[%clk 0:02:30.3]} 16. Bb6 {[%clk 0:02:25.8]} 16... Qb8
{[%clk 0:02:20.2]} 17. Nbd4 {[%clk 0:01:55.5]} 17... Bf8 {[%clk 0:02:05.1]} 18.
Rae1 {[%clk 0:01:48.5]} 18... Nd7 {[%clk 0:02:00.4]} 19. Nxc6 {[%clk 0:01:45.7]}
19... Bxc6 {[%clk 0:02:00.8]} 20. Bd4 {[%clk 0:01:42.1]} 20... e5 {[%clk
0:01:51.8]} 21. Be3 {[%clk 0:01:36.9]} 21... Bb5 {[%clk 0:01:47.7]} 22. f5
{[%clk 0:01:34]} 22... Bxd3 {[%clk 0:01:47.1]} 23. cxd3 {[%clk 0:01:34.1]} 23...
f6 {[%clk 0:01:37.7]} 24. Rc1 {[%clk 0:01:19.5]} 24... Qb5 {[%clk 0:01:32.9]}
25. Rc7 {[%clk 0:01:18.1]} 25... Rac8 {[%clk 0:01:31.1]} 26. Rfc1 {[%clk
0:01:17.6]} 26... Nc5 {[%clk 0:01:28]} 27. Rxc8 {[%clk 0:01:02.5]} 27... Rxc8
{[%clk 0:01:27.5]} 28. Bxc5 {[%clk 0:00:54.8]} 28... Rxc5 {[%clk 0:01:27.1]} 29.
Rxc5 {[%clk 0:00:47.8]} 29... dxc5 {[%clk 0:01:27.3]} 30. Qe3 {[%clk 0:00:30.5]}
30... Qxa5 {[%clk 0:01:27.1]} 31. b3 {[%clk 0:00:27.1]} 31... Qa1+ {[%clk
0:01:24.6]} 32. Kf2 {[%clk 0:00:26.2]} 32... Qb1 {[%clk 0:01:24.7]} 33. Nc1
{[%clk 0:00:25.3]} 33... Qc2+ {[%clk 0:01:21]} 34. Kg3 {[%clk 0:00:21.6]} 34...
a5 {[%clk 0:01:19.7]} 35. h4 {[%clk 0:00:20.5]} 35... a4 {[%clk 0:01:19.1]} 36.
bxa4 {[%clk 0:00:20.2]} 36... Qxa4 {[%clk 0:01:19.3]} 37. Qd2 {[%clk 0:00:14.6]}
37... Qa1 {[%clk 0:01:05.4]} 38. Qc2 {[%clk 0:00:12.8]} 38... Qd4 {[%clk
0:01:04.7]} 39. Qb3+ {[%clk 0:00:12.6]} 39... Kh8 {[%clk 0:01:00.4]} 40. Kf3
{[%clk 0:00:12.9]} 40... Qd7 {[%clk 0:00:46.6]} 41. Ne2 {[%clk 0:00:11.8]} 41...
g6 {[%clk 0:00:45.7]} 42. g4 {[%clk 0:00:11.8]} 42... Kg7 {[%clk 0:00:44]} 43.
Qc4 {[%clk 0:00:10.6]} 43... Qb7 {[%clk 0:00:43.2]} 44. Nc1 {[%clk 0:00:10.2]}
44... Qa7 {[%clk 0:00:40]} 45. Nb3 {[%clk 0:00:09.8]} 45... h5 {[%clk 0:00:16]}
46. g5 {[%clk 0:00:10]} 46... fxg5 {[%clk 0:00:15.4]} 47. hxg5 {[%clk
0:00:10.3]} 47... gxf5 {[%clk 0:00:15.8]} 48. exf5 {[%clk 0:00:10.3]} 48... Qb7+
{[%clk 0:00:16.3]} 49. Kg3 {[%clk 0:00:10.6]} 49... Qc7 {[%clk 0:00:13.6]} 50.
Qe6 {[%clk 0:00:09.8]} 50... e4+ {[%clk 0:00:13.3]} 51. Kh3 {[%clk 0:00:09.6]}
51... exd3 {[%clk 0:00:08.3]} 52. f6+ {[%clk 0:00:06.8]} 52... Kh7 {[%clk
0:00:04.9]} 53. Qf5+ {[%clk 0:00:06.8]} 53... Kh8 {[%clk 0:00:03.5]} 54. f7
{[%clk 0:00:06.9]} 1-0

[Event "Early-Titled-Tuesday-Blitz-September-26-2023"]
[Site "Chess.com"]
[Date "2023.09.26"]
[Round "3"]
[White "BlitzWizard04"]
[Black "infinitegiantkiller"]
[Result "1-0"]
[WhiteElo "2638"]
[BlackElo "2444"]
[TimeControl "180+1"]
[EndTime "8:29:42 PDT"]
[Termination "BlitzWizard04 won on time"]

1. e4 {[%clk 0:03:00.9]} 1... c5 {[%clk 0:02:59.3]} 2. Nf3 {[%clk 0:03:00.3]}
2... Nc6 {[%clk 0:02:59.4]} 3. d4 {[%clk 0:03:00]} 3... cxd4 {[%clk 0:02:59.7]}
4. Nxd4 {[%clk 0:03:00.9]} 4... g6 {[%clk 0:02:59.9]} 5. c4 {[%clk 0:03:00.5]}
5... Bg7 {[%clk 0:02:59.8]} 6. Be3 {[%clk 0:03:00.8]} 6... Nf6 {[%clk
0:02:59.9]} 7. Nc3 {[%clk 0:03:01.4]} 7... d6 {[%clk 0:02:59.3]} 8. Be2 {[%clk
0:02:57.4]} 8... O-O {[%clk 0:02:59.3]} 9. Qd2 {[%clk 0:02:56.9]} 9... a6 {[%clk
0:02:59.3]} 10. f3 {[%clk 0:02:56.3]} 10... Nxd4 {[%clk 0:02:59.6]} 11. Bxd4
{[%clk 0:02:55.9]} 11... Be6 {[%clk 0:03:00.5]} 12. b3 {[%clk 0:02:53.4]} 12...
Rc8 {[%clk 0:03:00.9]} 13. O-O {[%clk 0:02:52.2]} 13... Nd7 {[%clk 0:02:57]} 14.
f4 {[%clk 0:02:50.5]} 14... Bxd4+ {[%clk 0:02:56.6]} 15. Qxd4 {[%clk 0:02:51.1]}
15... Qb6 {[%clk 0:02:45.1]} 16. Qxb6 {[%clk 0:02:50]} 16... Nxb6 {[%clk
0:02:46]} 17. f5 {[%clk 0:02:44.8]} 17... Bd7 {[%clk 0:02:45.5]} 18. f6 {[%clk
0:02:44.5]} 18... exf6 {[%clk 0:02:36.5]} 19. Rxf6 {[%clk 0:02:45.1]} 19... Be6
{[%clk 0:02:36.8]} 20. Rd1 {[%clk 0:02:38.7]} 20... Rfd8 {[%clk 0:02:36.7]} 21.
Nd5 {[%clk 0:02:27.9]} 21... Bxd5 {[%clk 0:02:27.6]} 22. exd5 {[%clk 0:02:28.8]}
22... Kg7 {[%clk 0:02:26]} 23. Rdf1 {[%clk 0:02:26.3]} 23... Rc7 {[%clk
0:02:26]} 24. Bg4 {[%clk 0:02:26.8]} 24... Re7 {[%clk 0:02:25.9]} 25. h4 {[%clk
0:02:21.9]} 25... h5 {[%clk 0:02:25.4]} 26. Bh3 {[%clk 0:02:21.1]} 26... a5
{[%clk 0:02:20.9]} 27. c5 {[%clk 0:02:19.6]} 27... Nxd5 {[%clk 0:02:18.9]} 28.
Rxd6 {[%clk 0:02:18.2]} 28... Rxd6 {[%clk 0:02:13.7]} 29. cxd6 {[%clk
0:02:19.1]} 29... Re8 {[%clk 0:02:13.5]} 30. Rd1 {[%clk 0:02:15.9]} 30... Nf4
{[%clk 0:02:12.2]} 31. d7 {[%clk 0:02:12.9]} 31... Rd8 {[%clk 0:02:12.3]} 32.
Kh2 {[%clk 0:02:08.4]} 32... Nxh3 {[%clk 0:02:12.2]} 33. Kxh3 {[%clk 0:02:06.6]}
33... Kf6 {[%clk 0:02:13.1]} 34. Rd5 {[%clk 0:02:07]} 34... Ke6 {[%clk
0:02:09.2]} 35. Rxa5 {[%clk 0:02:06.3]} 35... Rxd7 {[%clk 0:02:09.5]} 36. Rb5
{[%clk 0:02:06.1]} 36... Kd6 {[%clk 0:02:07.8]} 37. a4 {[%clk 0:02:04.5]} 37...
Kc6 {[%clk 0:02:07.7]} 38. Rb4 {[%clk 0:02:02.1]} 38... Rd3+ {[%clk 0:02:00.7]}
39. g3 {[%clk 0:02:02.1]} 39... Rd7 {[%clk 0:02:00]} 40. Rc4+ {[%clk 0:02:02.2]}
40... Kd5 {[%clk 0:02:00.2]} 41. g4 {[%clk 0:02:00.1]} 41... hxg4+ {[%clk
0:01:59.8]} 42. Kxg4 {[%clk 0:02:01]} 42... Ke5 {[%clk 0:01:59.2]} 43. Kg5
{[%clk 0:01:54.7]} 43... Ke6 {[%clk 0:01:51.5]} 44. Re4+ {[%clk 0:01:49]} 44...
Kd5 {[%clk 0:01:51.6]} 45. Re1 {[%clk 0:01:48.1]} 45... Kc5 {[%clk 0:01:51.2]}
46. Re4 {[%clk 0:01:40.8]} 46... Kd5 {[%clk 0:01:49.3]} 47. Rf4 {[%clk
0:01:41.2]} 47... Ke6 {[%clk 0:01:48.7]} 48. Rf6+ {[%clk 0:01:38.7]} 48... Ke7
{[%clk 0:01:48.8]} 49. Rb6 {[%clk 0:01:36.2]} 49... Rc7 {[%clk 0:01:31.9]} 50.
Kh6 {[%clk 0:01:29.5]} 50... Kf8 {[%clk 0:01:29.2]} 51. b4 {[%clk 0:01:25.8]}
51... Rd7 {[%clk 0:01:24.6]} 52. Kg5 {[%clk 0:01:10.9]} 52... Ke7 {[%clk
0:01:24.5]} 53. a5 {[%clk 0:01:07]} 53... Rd5+ {[%clk 0:01:17.6]} 54. Kf4 {[%clk
0:01:06.6]} 54... Rd7 {[%clk 0:01:17.9]} 55. Ke5 {[%clk 0:01:03.8]} 55... Kd8
{[%clk 0:01:09]} 56. b5 {[%clk 0:00:59]} 56... Kc7 {[%clk 0:01:08.8]} 57. Rf6
{[%clk 0:00:55.4]} 57... Re7+ {[%clk 0:01:06.5]} 58. Kd5 {[%clk 0:00:55.5]}
58... Rd7+ {[%clk 0:01:04]} 59. Kc5 {[%clk 0:00:50.8]} 59... Re7 {[%clk
0:01:04.1]} 60. b6+ {[%clk 0:00:33.3]} 60... Kd7 {[%clk 0:01:02.6]} 61. Kd5
{[%clk 0:00:31]} 61... Kc8 {[%clk 0:00:49.5]} 62. Rf1 {[%clk 0:00:25.1]} 62...
Rd7+ {[%clk 0:00:48.9]} 63. Ke5 {[%clk 0:00:23.1]} 63... Re7+ {[%clk 0:00:42]}
64. Kf6 {[%clk 0:00:22.6]} 64... Re4 {[%clk 0:00:41.7]} 65. Kxf7 {[%clk
0:00:20.8]} 65... Rxh4 {[%clk 0:00:41.5]} 66. Rc1+ {[%clk 0:00:21]} 66... Kb8
{[%clk 0:00:39.7]} 67. Kxg6 {[%clk 0:00:19.2]} 67... Rg4+ {[%clk 0:00:29]} 68.
Kf6 {[%clk 0:00:17.1]} 68... Rg8 {[%clk 0:00:18]} 69. Kf7 {[%clk 0:00:15.2]}
69... Rh8 {[%clk 0:00:15.4]} 70. Re1 {[%clk 0:00:10.7]} 70... Rh7+ {[%clk
0:00:08.7]} 71. Kg8 {[%clk 0:00:10.5]} 1-0

[Event "Early-Titled-Tuesday-Blitz-September-26-2023"]
[Site "Chess.com"]
[Date "2023.09.26"]
[Round "3"]
[White "Kleyton_Lima"]
[Black "Vanina1989"]
[Result "0-1"]
[WhiteElo "2542"]
[BlackElo "2724"]
[TimeControl "180+1"]
[EndTime "8:29:51 PDT"]
[Termination "Vanina1989 won by resignation"]

1. e4 {[%clk 0:03:00.9]} 1... c6 {[%clk 0:03:00]} 2. d4 {[%clk 0:03:00.4]} 2...
d5 {[%clk 0:03:00.3]} 3. e5 {[%clk 0:03:01.2]} 3... c5 {[%clk 0:03:00.2]} 4.
dxc5 {[%clk 0:02:59.7]} 4... e6 {[%clk 0:03:00.5]} 5. a3 {[%clk 0:03:00.2]} 5...
Bxc5 {[%clk 0:03:00.7]} 6. b4 {[%clk 0:02:52.6]} 6... Be7 {[%clk 0:03:00.8]} 7.
Nf3 {[%clk 0:02:50.4]} 7... f6 {[%clk 0:02:59.9]} 8. Bb2 {[%clk 0:02:34.1]} 8...
Nc6 {[%clk 0:02:59.4]} 9. Bd3 {[%clk 0:02:27.2]} 9... Nh6 {[%clk 0:02:52.6]} 10.
O-O {[%clk 0:02:08.7]} 10... Nf7 {[%clk 0:02:50.9]} 11. Re1 {[%clk 0:02:05.6]}
11... fxe5 {[%clk 0:02:50.4]} 12. Nxe5 {[%clk 0:02:04]} 12... Ncxe5 {[%clk
0:02:50.4]} 13. Bxe5 {[%clk 0:02:03.7]} 13... Nxe5 {[%clk 0:02:50.4]} 14. Rxe5
{[%clk 0:02:03.4]} 14... Bf6 {[%clk 0:02:49]} 15. Qh5+ {[%clk 0:01:53.6]} 15...
g6 {[%clk 0:02:47.8]} 16. Bb5+ {[%clk 0:01:40.1]} 16... Kf7 {[%clk 0:02:44.1]}
17. Qf3 {[%clk 0:01:35.3]} 17... Kg7 {[%clk 0:02:44]} 18. Qe2 {[%clk 0:01:26.8]}
18... Rf8 {[%clk 0:02:36.1]} 19. c3 {[%clk 0:01:18.4]} 19... Bxe5 {[%clk
0:02:32.7]} 20. Qxe5+ {[%clk 0:01:19.3]} 20... Qf6 {[%clk 0:02:32.9]} 21. Qe2
{[%clk 0:01:18.7]} 21... e5 {[%clk 0:02:29.4]} 22. Nd2 {[%clk 0:01:18.1]} 22...
e4 {[%clk 0:02:29.1]} 23. Rc1 {[%clk 0:01:14.5]} 23... Be6 {[%clk 0:02:28.7]}
24. Nb3 {[%clk 0:01:14.3]} 24... Rac8 {[%clk 0:02:28.9]} 25. Qd2 {[%clk
0:01:08.8]} 25... Rc7 {[%clk 0:02:17]} 26. Nd4 {[%clk 0:01:08.7]} 26... Bf7
{[%clk 0:02:05.8]} 27. a4 {[%clk 0:01:08.3]} 27... Rfc8 {[%clk 0:02:05]} 28. Bf1
{[%clk 0:01:07.8]} 28... h6 {[%clk 0:02:02.2]} 29. g3 {[%clk 0:01:07.4]} 29...
Qg5 {[%clk 0:02:01.1]} 30. Qe1 {[%clk 0:01:02.4]} 30... a6 {[%clk 0:01:59]} 31.
Bh3 {[%clk 0:01:02.3]} 31... Re8 {[%clk 0:01:57.1]} 32. b5 {[%clk 0:00:51.7]}
32... e3 {[%clk 0:01:53.2]} 33. f4 {[%clk 0:00:50.5]} 33... Qf6 {[%clk 0:01:53]}
34. Bg2 {[%clk 0:00:40.5]} 34... Rc4 {[%clk 0:01:49.4]} 35. h4 {[%clk
0:00:34.6]} 35... Rxa4 {[%clk 0:01:41.2]} 36. bxa6 {[%clk 0:00:34.7]} 36... bxa6
{[%clk 0:01:40.8]} 37. Nf3 {[%clk 0:00:35.6]} 37... e2 {[%clk 0:01:32.5]} 38.
Ne5 {[%clk 0:00:33.8]} 38... Rxe5 {[%clk 0:01:30.2]} 39. fxe5 {[%clk 0:00:34.7]}
39... Qxe5 {[%clk 0:01:30.3]} 40. Rc2 {[%clk 0:00:34.3]} 40... Rg4 {[%clk
0:01:21.2]} 41. Rxe2 {[%clk 0:00:28.7]} 41... Qxg3 {[%clk 0:01:21.1]} 42. Qd1
{[%clk 0:00:24.8]} 42... Rxh4 {[%clk 0:01:19.8]} 43. Rf2 {[%clk 0:00:20.6]}
43... Rh1+ {[%clk 0:01:07.4]} 44. Kxh1 {[%clk 0:00:20.3]} 44... Qxf2 {[%clk
0:01:07.7]} 45. Qa1 {[%clk 0:00:16.7]} 45... Qf6 {[%clk 0:01:04.8]} 46. Qa5
{[%clk 0:00:14.6]} 46... h5 {[%clk 0:01:01.6]} 47. Qc7 {[%clk 0:00:15.1]} 47...
d4 {[%clk 0:01:00]} 48. cxd4 {[%clk 0:00:13.7]} 48... Qxd4 {[%clk 0:00:59.6]}
49. Qb7 {[%clk 0:00:11.9]} 49... a5 {[%clk 0:00:57.7]} 50. Qa6 {[%clk
0:00:10.7]} 50... a4 {[%clk 0:00:57]} 51. Kh2 {[%clk 0:00:10.4]} 51... Kh6
{[%clk 0:00:49]} 52. Qc6 {[%clk 0:00:09.2]} 52... Qf4+ {[%clk 0:00:42.3]} 53.
Kh1 {[%clk 0:00:07.3]} 53... a3 {[%clk 0:00:41.7]} 54. Qa8 {[%clk 0:00:07.4]}
54... Qc1+ {[%clk 0:00:39.6]} 55. Kh2 {[%clk 0:00:07.3]} 55... Kg7 {[%clk
0:00:36.7]} 56. Bd5 {[%clk 0:00:04.5]} 56... Qd2+ {[%clk 0:00:33.3]} 57. Kh3
{[%clk 0:00:03.8]} 57... Qxd5 {[%clk 0:00:30.5]} 58. Qxa3 {[%clk 0:00:04.5]}
58... Qf5+ {[%clk 0:00:29]} 59. Kh2 {[%clk 0:00:04.7]} 59... Qf4+ {[%clk
0:00:28.9]} 60. Kh1 {[%clk 0:00:04.7]} 60... Bd5+ {[%clk 0:00:28.5]} 61. Kg1
{[%clk 0:00:05.4]} 61... Qg4+ {[%clk 0:00:26.8]} 62. Kf1 {[%clk 0:00:05.8]}
62... Qg2+ {[%clk 0:00:26.9]} 63. Ke1 {[%clk 0:00:06.3]} 63... Qg1+ {[%clk
0:00:23.8]} 64. Ke2 {[%clk 0:00:06.3]} 64... Bc4+ {[%clk 0:00:23.7]} 65. Kd2
{[%clk 0:00:06.2]} 65... Qf2+ {[%clk 0:00:23.4]} 66. Kd1 {[%clk 0:00:05.4]}
66... Qe2+ {[%clk 0:00:23.1]} 67. Kc1 {[%clk 0:00:05.6]} 67... h4 {[%clk
0:00:20.3]} 68. Qc3+ {[%clk 0:00:03.6]} 68... Kh6 {[%clk 0:00:18.2]} 69. Qh3
{[%clk 0:00:03.4]} 69... Qe1+ {[%clk 0:00:16.8]} 70. Kc2 {[%clk 0:00:03.5]}
70... Qf2+ {[%clk 0:00:16]} 71. Kb1 {[%clk 0:00:02.4]} 71... Bd5 {[%clk
0:00:12.6]} 72. Qc8 {[%clk 0:00:03.3]} 72... Be4+ {[%clk 0:00:12.3]} 73. Ka1
{[%clk 0:00:03.1]} 73... Qe1+ {[%clk 0:00:12]} 74. Kb2 {[%clk 0:00:03.2]} 74...
Qb1+ {[%clk 0:00:11.9]} 75. Ka3 {[%clk 0:00:03.9]} 75... Qa1+ {[%clk 0:00:12.1]}
76. Kb4 {[%clk 0:00:04]} 76... Qb2+ {[%clk 0:00:12.1]} 77. Ka4 {[%clk
0:00:04.6]} 77... Qc2+ {[%clk 0:00:12.3]} 78. Kb4 {[%clk 0:00:05]} 78... Qxc8
{[%clk 0:00:11.7]} 0-1

[Event "Early-Titled-Tuesday-Blitz-September-26-2023"]
[Site "Chess.com"]
[Date "2023.09.26"]
[Round "3"]
[White "ContrVersia"]
[Black "sonicdravise"]
[Result "1-0"]
[WhiteElo "2911"]
[BlackElo "2669"]
[TimeControl "180+1"]
[EndTime "8:29:58 PDT"]
[Termination "ContrVersia won by resignation"]

1. Nf3 {[%clk 0:03:00.9]} 1... c5 {[%clk 0:02:59.4]} 2. c4 {[%clk 0:03:00.8]}
2... Nc6 {[%clk 0:02:59.9]} 3. b3 {[%clk 0:03:01]} 3... e5 {[%clk 0:02:58.4]} 4.
Bb2 {[%clk 0:03:01.2]} 4... d6 {[%clk 0:02:58.9]} 5. Nc3 {[%clk 0:03:00.8]} 5...
g6 {[%clk 0:02:59]} 6. g3 {[%clk 0:03:01.3]} 6... Bg7 {[%clk 0:02:59.5]} 7. d3
{[%clk 0:03:01.9]} 7... Nge7 {[%clk 0:02:59.8]} 8. Bg2 {[%clk 0:03:02.5]} 8...
O-O {[%clk 0:02:58.3]} 9. O-O {[%clk 0:03:02.7]} 9... h6 {[%clk 0:02:56.4]} 10.
Nd2 {[%clk 0:03:02.7]} 10... Be6 {[%clk 0:02:55.9]} 11. a3 {[%clk 0:03:02.2]}
11... d5 {[%clk 0:02:49.9]} 12. cxd5 {[%clk 0:03:02.3]} 12... Nxd5 {[%clk
0:02:50.3]} 13. Nc4 {[%clk 0:03:02.7]} 13... b6 {[%clk 0:02:34.8]} 14. Ne3
{[%clk 0:02:51.3]} 14... Nxc3 {[%clk 0:02:30.3]} 15. Bxc3 {[%clk 0:02:50.8]}
15... Rc8 {[%clk 0:02:30.9]} 16. b4 {[%clk 0:02:48.4]} 16... cxb4 {[%clk
0:02:21.9]} 17. axb4 {[%clk 0:02:48]} 17... Nd4 {[%clk 0:02:21.5]} 18. Bb2
{[%clk 0:02:26.6]} 18... Qd7 {[%clk 0:02:20.1]} 19. Nc4 {[%clk 0:02:13.5]} 19...
Rfd8 {[%clk 0:02:11.6]} 20. e3 {[%clk 0:02:12.4]} 20... Nc6 {[%clk 0:02:02.3]}
21. b5 {[%clk 0:02:11]} 21... Nb4 {[%clk 0:01:56]} 22. Nxe5 {[%clk 0:01:02.1]}
22... Qxb5 {[%clk 0:01:54.5]} 23. Qa4 {[%clk 0:01:02.3]} 23... Qxa4 {[%clk
0:01:35.5]} 24. Rxa4 {[%clk 0:01:03.2]} 24... Nxd3 {[%clk 0:01:17.6]} 25. Nxd3
{[%clk 0:01:00.3]} 25... Rxd3 {[%clk 0:01:18]} 26. Bxg7 {[%clk 0:01:00.1]} 26...
Kxg7 {[%clk 0:01:18.9]} 27. Rxa7 {[%clk 0:01:00.2]} 27... b5 {[%clk 0:00:59.4]}
28. Rb1 {[%clk 0:00:57.9]} 28... Rd2 {[%clk 0:00:48]} 29. Be4 {[%clk 0:00:37.9]}
29... Rb8 {[%clk 0:00:38.6]} 30. Rb4 {[%clk 0:00:28.8]} 30... Bh3 {[%clk
0:00:27.7]} 31. Ra1 {[%clk 0:00:28.2]} 31... Be6 {[%clk 0:00:20.9]} 32. Kg2
{[%clk 0:00:24.8]} 32... Bc4 {[%clk 0:00:19.7]} 33. Ra7 {[%clk 0:00:20.2]} 33...
Rd1 {[%clk 0:00:12.8]} 34. g4 {[%clk 0:00:20.1]} 34... Rbd8 {[%clk 0:00:11.8]}
35. Rb2 {[%clk 0:00:17.1]} 35... R8d2 {[%clk 0:00:11.3]} 36. Rxd2 {[%clk
0:00:16.6]} 36... Rxd2 {[%clk 0:00:12.2]} 37. Rb7 {[%clk 0:00:16.7]} 37... Rb2
{[%clk 0:00:08.5]} 38. Kg3 {[%clk 0:00:16.5]} 38... b4 {[%clk 0:00:07.1]} 39. h4
{[%clk 0:00:10.1]} 39... b3 {[%clk 0:00:07.4]} 40. f4 {[%clk 0:00:08.9]} 40...
Re2 {[%clk 0:00:04.5]} 41. Kf3 {[%clk 0:00:09.2]} 41... Rh2 {[%clk 0:00:03.9]}
42. Kg3 {[%clk 0:00:09.3]} 42... Rd2 {[%clk 0:00:03.5]} 43. Rc7 {[%clk 0:00:06]}
43... Bd5 {[%clk 0:00:02.1]} 44. Bxd5 {[%clk 0:00:05.2]} 44... Rxd5 {[%clk
0:00:03]} 45. Rb7 {[%clk 0:00:06.1]} 45... Rd3 {[%clk 0:00:03.1]} 46. Kf3 {[%clk
0:00:06.6]} 46... Rc3 {[%clk 0:00:03.3]} 47. Ke4 {[%clk 0:00:06.5]} 47... Kf6
{[%clk 0:00:02.5]} 48. g5+ {[%clk 0:00:06.5]} 48... hxg5 {[%clk 0:00:02.7]} 49.
hxg5+ {[%clk 0:00:07.4]} 49... Kg7 {[%clk 0:00:03.4]} 50. Kd4 {[%clk 0:00:07.6]}
50... Rc8 {[%clk 0:00:02]} 51. Rxb3 {[%clk 0:00:07.7]} 51... Rd8+ {[%clk
0:00:02.6]} 52. Ke4 {[%clk 0:00:08.3]} 52... Re8+ {[%clk 0:00:03.3]} 53. Kf3
{[%clk 0:00:08.9]} 53... Rh8 {[%clk 0:00:03.7]} 54. Rd3 {[%clk 0:00:09.1]} 54...
Re8 {[%clk 0:00:03.8]} 55. e4 {[%clk 0:00:09.3]} 55... Rh8 {[%clk 0:00:04.3]}
56. Ke3 {[%clk 0:00:09.9]} 56... Re8 {[%clk 0:00:04.3]} 57. Rd7 {[%clk
0:00:09.2]} 57... Rh8 {[%clk 0:00:04.5]} 58. Kd4 {[%clk 0:00:08.9]} 58... Rh4
{[%clk 0:00:04.6]} 59. Ke5 {[%clk 0:00:08.9]} 59... Rh1 {[%clk 0:00:04.3]} 60.
Rd4 {[%clk 0:00:07.8]} 60... Ra1 {[%clk 0:00:04.2]} 61. f5 {[%clk 0:00:07.7]}
61... Ra5+ {[%clk 0:00:04.1]} 62. Rd5 {[%clk 0:00:08.1]} 62... Ra4 {[%clk
0:00:03.1]} 63. f6+ {[%clk 0:00:08.3]} 63... Kg8 {[%clk 0:00:02.9]} 64. Rd8+
{[%clk 0:00:06.9]} 64... Kh7 {[%clk 0:00:03.5]} 65. Rf8 {[%clk 0:00:06.6]} 65...
Ra5+ {[%clk 0:00:02.2]} 66. Kd4 {[%clk 0:00:06.3]} 66... Rxg5 {[%clk 0:00:02.2]}
67. Rxf7+ {[%clk 0:00:06.2]} 67... Kg8 {[%clk 0:00:02.9]} 68. Rg7+ {[%clk
0:00:06.1]} 68... Kf8 {[%clk 0:00:03.6]} 69. e5 {[%clk 0:00:06.7]} 69... Rg1
{[%clk 0:00:03.6]} 70. Kd5 {[%clk 0:00:07]} 70... g5 {[%clk 0:00:03.9]} 71. Ke6
{[%clk 0:00:07.4]} 71... Ra1 {[%clk 0:00:04.3]} 72. Rb7 {[%clk 0:00:06.9]} 72...
Ra6+ {[%clk 0:00:04.9]} 73. Kf5 {[%clk 0:00:07.4]} 73... Ra5 {[%clk 0:00:04.3]}
74. Kg6 {[%clk 0:00:05.4]} 74... Rxe5 {[%clk 0:00:03.5]} 75. Rb8+ {[%clk
0:00:05.8]} 75... Re8 {[%clk 0:00:02.9]} 76. Rxe8+ {[%clk 0:00:06.5]} 76... Kxe8
{[%clk 0:00:03.8]} 77. Kg7 {[%clk 0:00:07.3]} 1-0

[Event "Early-Titled-Tuesday-Blitz-September-26-2023"]
[Site "Chess.com"]
[Date "2023.09.26"]
[Round "4"]
[White "Juicy_Fork"]
[Black "Zampronha1971"]
[Result "1-0"]
[WhiteElo "2482"]
[BlackElo "2262"]
[TimeControl "180+1"]
[EndTime "8:34:07 PDT"]
[Termination "Juicy_Fork won by resignation"]

1. e4 {[%clk 0:02:52.2]} 1... c5 {[%clk 0:02:59.8]} 2. Nf3 {[%clk 0:02:52.4]}
2... e6 {[%clk 0:03:00.2]} 3. d4 {[%clk 0:02:52.9]} 3... cxd4 {[%clk 0:03:00.9]}
4. Nxd4 {[%clk 0:02:53.8]} 4... Nc6 {[%clk 0:03:00.9]} 5. Bf4 {[%clk 0:02:53.8]}
5... Nf6 {[%clk 0:02:50.5]} 6. Nb5 {[%clk 0:02:51.5]} 6... e5 {[%clk 0:02:46.5]}
7. Bg5 {[%clk 0:02:51.3]} 7... Qa5+ {[%clk 0:02:40.7]} 8. Qd2 {[%clk 0:02:40.9]}
8... Qb6 {[%clk 0:02:32.2]} 9. N1c3 {[%clk 0:02:37.3]} 9... a6 {[%clk
0:02:32.1]} 10. Bxf6 {[%clk 0:02:37.2]} 10... axb5 {[%clk 0:02:28.2]} 11. Nd5
{[%clk 0:02:37.3]} 1-0

[Event "Early-Titled-Tuesday-Blitz-September-26-2023"]
[Site "Chess.com"]
[Date "2023.09.26"]
[Round "4"]
[White "kroppar"]
[Black "Zhani-Z"]
[Result "1-0"]
[WhiteElo "2397"]
[BlackElo "2215"]
[TimeControl "180+1"]
[EndTime "8:34:55 PDT"]
[Termination "kroppar won by resignation"]

1. e4 {[%clk 0:03:00.9]} 1... c5 {[%clk 0:02:59.6]} 2. Nf3 {[%clk 0:03:00.1]}
2... e6 {[%clk 0:02:59.7]} 3. c4 {[%clk 0:02:57.7]} 3... Nc6 {[%clk 0:02:59.6]}
4. b3 {[%clk 0:02:57.1]} 4... Nd4 {[%clk 0:02:58.4]} 5. Bb2 {[%clk 0:02:53.2]}
5... Qb6 {[%clk 0:02:54]} 6. Nc3 {[%clk 0:02:50.6]} 6... d6 {[%clk 0:02:45.1]}
7. Nxd4 {[%clk 0:02:45.9]} 7... cxd4 {[%clk 0:02:44.1]} 8. Na4 {[%clk
0:02:43.6]} 8... Qa5 {[%clk 0:02:43.5]} 9. Bxd4 {[%clk 0:02:39.3]} 9... Bd7
{[%clk 0:02:42.7]} 10. Bc3 {[%clk 0:02:34.5]} 10... Qg5 {[%clk 0:02:37]} 11. Nb2
{[%clk 0:02:29.4]} 11... Nf6 {[%clk 0:02:30]} 12. d3 {[%clk 0:02:28.7]} 12... g6
{[%clk 0:02:07.2]} 13. h4 {[%clk 0:02:23.1]} 13... Qf4 {[%clk 0:02:05.7]} 14. g3
{[%clk 0:02:18.2]} 1-0

[Event "Early-Titled-Tuesday-Blitz-September-26-2023"]
[Site "Chess.com"]
[Date "2023.09.26"]
[Round "4"]
[White "IPAchess"]
[Black "Chesstar"]
[Result "1-0"]
[WhiteElo "2323"]
[BlackElo "2064"]
[TimeControl "180+1"]
[EndTime "8:35:11 PDT"]
[Termination "IPAchess won by checkmate"]

1. d4 {[%clk 0:03:00.9]} 1... Nf6 {[%clk 0:02:58.9]} 2. c4 {[%clk 0:03:01.2]}
2... e6 {[%clk 0:02:57]} 3. Nf3 {[%clk 0:03:00.4]} 3... h6 {[%clk 0:02:55.5]} 4.
g3 {[%clk 0:02:58.9]} 4... g5 {[%clk 0:02:55.8]} 5. Bg2 {[%clk 0:02:59.2]} 5...
Bg7 {[%clk 0:02:56.4]} 6. O-O {[%clk 0:02:59.4]} 6... d5 {[%clk 0:02:57.1]} 7.
Nc3 {[%clk 0:02:58.2]} 7... O-O {[%clk 0:02:57]} 8. Qc2 {[%clk 0:02:53.7]} 8...
Nbd7 {[%clk 0:02:52.9]} 9. e4 {[%clk 0:02:52.6]} 9... dxe4 {[%clk 0:02:52.3]}
10. Nxe4 {[%clk 0:02:53.5]} 10... Nxe4 {[%clk 0:02:52.6]} 11. Qxe4 {[%clk
0:02:54.4]} 11... Nf6 {[%clk 0:02:52.9]} 12. Qc2 {[%clk 0:02:55]} 12... Nh7
{[%clk 0:02:48.8]} 13. b3 {[%clk 0:02:52.3]} 13... c5 {[%clk 0:02:44.3]} 14. Ba3
{[%clk 0:02:31.3]} 14... b6 {[%clk 0:02:33.9]} 15. dxc5 {[%clk 0:02:30.2]} 15...
Bxa1 {[%clk 0:02:33.1]} 16. Rxa1 {[%clk 0:02:30.8]} 16... bxc5 {[%clk
0:02:31.9]} 17. Bxc5 {[%clk 0:02:31]} 17... Re8 {[%clk 0:02:31.2]} 18. Ne5
{[%clk 0:02:18.9]} 18... Ba6 {[%clk 0:02:17.2]} 19. Nxf7 {[%clk 0:02:15]} 19...
Rc8 {[%clk 0:02:05.5]} 20. Qg6# {[%clk 0:02:06.9]} 1-0